[Event "Deutscher Jugend Online Cup 2020"]
[Site "Tornelo"]
[Date "2020.11.14"]
[Round "4.6"]
[White "Buchinger, Alexis"]
[Black "Marcziter, Alex"]
[Result "1-0"]
[ECO "C54"]
[WhiteElo "1496"]
[BlackElo "1401"]
[Annotator "NA RC"]
[PlyCount "85"]
[EventDate "2020.11.13"]
[EventType "k.o."]
[SourceTitle "playchess.com"]
[Source "ChessBase"]
[SourceQuality "1"]
[TimeControl "600+3"]

1. e4 {[%emt 0:00:00]} e5 {[%emt 0:00:04]} 2. Nf3 {[%emt 0:00:02]} Nc6 {[%emt 0:00:03]} 3. Bc4 {[%emt 0:00:03]} Nf6 {[%emt 0:00:02]} 4. d3 {[%emt 0:00:03]} Bc5 {[%emt 0:00:04]} 5. c3 {[%emt 0:00:05]} d6 {[%emt 0:00:20]} 6. O-O {[%emt 0:00:10]} h6 {[%emt 0:00:12]} 7. Re1 {[%emt 0:00:03]} O-O {[%emt 0:00:05]} 8. Nbd2 {[%emt 0:00:02]} a6 {[%emt 0:00:02]} 9. a4 {[%emt 0:00:07]} Be6 {[%emt 0:00:04]} 10. Ba2 {[%emt 0:00:18]} Ne7 {[%emt 0:00:36]} 11. d4 {[%emt 0:00:07]} exd4 {[%emt 0:00:11]} 12. cxd4 {[%emt 0:00:02]} Ba7 {[%emt 0:00:06]} 13. b4 {[%emt 0:00:18]} Ng6 {[%emt 0:00:27]} 14. Bb2 {[%emt 0:00:10]} Bxa2 {[%emt 0:00:11]} 15. Rxa2 {[%emt 0:00:03]} Qd7 {[%emt 0:00:15]} 16. e5 {[%emt 0:00:08]} Nd5 {[%emt 0:00:39]} 17. Qb3 {[%emt 0:00:11]} Ndf4 {[%emt 0:00:28]} 18. Nf1 {[%emt 0:00:27]} Qg4 {[%emt 0:00:24]} 19. Ne3 {[%emt 0:00:15]} Qd7 {[%emt 0:00:38]} 20. Bc3 {[%emt 0:00:44]} dxe5 {[%emt 0:01:00]} 21. Nxe5 {[%emt 0:00:07]} Nxe5 {[%emt 0:00:06]} 22. dxe5 {[%emt 0:00:01]} Qc6 {[%emt 0:00:19]} 23. Qc4 {[%emt 0:00:43]} Bxe3 {[%emt 0:00:36]} 24. Qxc6 {[%emt 0:00:03]} Bxf2+ {[%emt 0:00:06]} 25. Rxf2 {[%emt 0:00:04]} bxc6 {[%emt 0:00:04]} 26. Rxf4 {[%emt 0:00:03]} Rad8 {[%emt 0:00:03]} 27. Rc4 {[%emt 0:00:03]} Rfe8 {[%emt 0:00:06]} 28. Rxc6 {[%emt 0:00:03]} Re6 {[%emt 0:00:02]} 29. Rxe6 {[%emt 0:00:03]} fxe6 {[%emt 0:00:02]} 30. Rc1 {[%emt 0:00:05]} Rd3 {[%emt 0:00:04]} 31. Be1 {[%emt 0:00:07]} Ra3 {[%emt 0:00:06]} 32. Rxc7 {[%emt 0:00:04]} Rxa4 {[%emt 0:00:03]} 33. Re7 {[%emt 0:00:01]} Ra1 {[%emt 0:00:03]} 34. Kf2 {[%emt 0:00:04]} Ra2+ {[%emt 0:00:01]} 35. Kf1 {[%emt 0:00:03]} Kf8 {[%emt 0:00:15]} 36. Rxe6 {[%emt 0:00:02]} Kf7 {[%emt 0:00:02]} 37. Rb6 {[%emt 0:00:03]} g6 {[%emt 0:00:14]} 38. e6+ {[%emt 0:00:02]} Ke7 {[%emt 0:00:03]} 39. h3 {[%emt 0:00:18]} Kf6 {[%emt 0:00:11]} 40. Bc3+ {[%emt 0:00:06]} Ke7 {[%emt 0:00:04]} 41. b5 {[%emt 0:00:05]} axb5 {[%emt 0:00:02]} 42. Bb4+ {[%emt 0:00:03]} Ke8 {[%emt 0:00:05]} 43. Rb8# {[%emt 0:00:03]} 1-0

[Event "Deutscher Jugend Online Cup 2020"]
[Site "Tornelo"]
[Date "2020.11.14"]
[Round "4.6"]
[White "Wartenberg, Alissa"]
[Black "Haug, Mara"]
[Result "1/2-1/2"]
[ECO "B38"]
[WhiteElo "1463"]
[BlackElo "1356"]
[Annotator "NA RC"]
[PlyCount "198"]
[EventDate "2020.11.13"]
[EventType "k.o."]
[SourceTitle "playchess.com"]
[Source "ChessBase"]
[SourceQuality "1"]
[TimeControl "600+3"]

1. e4 {[%emt 0:00:00]} c5 {[%emt 0:00:03]} 2. Nf3 {[%emt 0:00:03]} Nc6 {[%emt 0:00:02]} 3. d4 {[%emt 0:00:03]} cxd4 {[%emt 0:00:02]} 4. Nxd4 {[%emt 0:00:02]} g6 {[%emt 0:00:01]} 5. c4 {[%emt 0:00:03]} Bg7 {[%emt 0:00:03]} 6. Be3 {[%emt 0:00:08]} d6 {[%emt 0:00:06]} 7. Nc3 {[%emt 0:00:06]} Nf6 {[%emt 0:00:03]} 8. f3 {[%emt 0:00:28]} Be6 {[%emt 0:00:07]} 9. Nxe6 {[%emt 0:00:27]} fxe6 {[%emt 0:00:02]} 10. Be2 {[%emt 0:00:10]} O-O {[%emt 0:00:08]} 11. Qd2 {[%emt 0:00:05]} Rc8 {[%emt 0:00:07]} 12. O-O-O {[%emt 0:00:24]} a6 {[%emt 0:00:06]} 13. Bh6 {[%emt 0:00:11]} Ne5 {[%emt 0:00:19]} 14. Bxg7 {[%emt 0:00:25]} Kxg7 {[%emt 0:00:03]} 15. Qd4 {[%emt 0:00:58]} Qc7 {[%emt 0:00:19]} 16. f4 {[%emt 0:01:26]} Nxc4 {[%emt 0:00:13]} 17. Kb1 {[%emt 0:00:25]} Qb6 {[%emt 0:00:18]} 18. Bxc4 {[%emt 0:00:24]} Qxd4 {[%emt 0:00:17]} 19. Rxd4 {[%emt 0:00:03]} b5 {[%emt 0:00:02]} 20. Bb3 {[%emt 0:00:06]} Rc7 {[%emt 0:00:32]} 21. a3 {[%emt 0:00:29]} Rfc8 {[%emt 0:00:06]} 22. Bxe6 {[%emt 0:00:04]} Rb8 {[%emt 0:00:05]} 23. Nd5 {[%emt 0:00:15]} Rcb7 {[%emt 0:00:18]} 24. Nxf6 {[%emt 0:00:06]} exf6 {[%emt 0:00:01]} 25. Rxd6 {[%emt 0:00:04]} a5 {[%emt 0:00:06]} 26. Rd7+ {[%emt 0:00:03]} Rxd7 {[%emt 0:00:02]} 27. Bxd7 {[%emt 0:00:03]} b4 {[%emt 0:00:01]} 28. axb4 {[%emt 0:00:03]} Rxb4 {[%emt 0:00:03]} 29. Bc6 {[%emt 0:00:04]} a4 {[%emt 0:00:04]} 30. Ka2 {[%emt 0:00:07]} Rc4 {[%emt 0:00:06]} 31. Bd5 {[%emt 0:00:05]} Rd4 {[%emt 0:00:02]} 32. Rc1 {[%emt 0:00:06]} Rd2 {[%emt 0:00:08]} 33. Rg1 {[%emt 0:00:08]} Rf2 {[%emt 0:00:05]} 34. g3 {[%emt 0:00:25]} Rxh2 {[%emt 0:00:02]} 35. Ka3 {[%emt 0:00:05]} Rf2 {[%emt 0:00:13]} 36. Bc6 {[%emt 0:00:12]} Re2 {[%emt 0:00:09]} 37. Ka2 {[%emt 0:00:18]} Re3 {[%emt 0:00:09]} 38. Kb1 {[%emt 0:00:10]} Kf7 {[%emt 0:00:05]} 39. Kc1 {[%emt 0:00:03]} Ke7 {[%emt 0:00:09]} 40. Kd2 {[%emt 0:00:10]} Rb3 {[%emt 0:00:03]} 41. Kc2 {[%emt 0:00:02]} Re3 {[%emt 0:00:04]} 42. Rg2 {[%emt 0:00:05]} Kd6 {[%emt 0:00:03]} 43. Bd5 {[%emt 0:00:06]} f5 {[%emt 0:00:05]} 44. Rd2 {[%emt 0:00:12]} fxe4 {[%emt 0:00:15]} 45. Bxe4+ {[%emt 0:00:08]} Ke6 {[%emt 0:00:02]} 46. Bd5+ {[%emt 0:00:02]} Kf6 {[%emt 0:00:05]} 47. Rg2 {[%emt 0:00:06]} Kf5 {[%emt 0:00:03]} 48. Bc6 {[%emt 0:00:04]} a3 {[%emt 0:00:17]} 49. bxa3 {[%emt 0:00:14]} Rxa3 {[%emt 0:00:03]} 50. Kb2 {[%emt 0:00:02]} Re3 {[%emt 0:00:04]} 51. Bd7+ {[%emt 0:00:04]} Kf6 {[%emt 0:00:06]} 52. Kc1 {[%emt 0:00:11]} Rd3 {[%emt 0:00:06]} 53. Bh3 {[%emt 0:00:12]} h5 {[%emt 0:00:09]} 54. Kc2 {[%emt 0:00:04]} Ra3 {[%emt 0:00:05]} 55. Kd1 {[%emt 0:00:05]} h4 {[%emt 0:00:07]} 56. Bc8 {[%emt 0:01:18]} hxg3 {[%emt 0:00:07]} 57. Ke2 {[%emt 0:00:19]} Rc3 {[%emt 0:00:19]} 58. Bd7 {[%emt 0:00:16]} Rc7 {[%emt 0:00:10]} 59. Bh3 {[%emt 0:00:03]} Rc3 {[%emt 0:00:04]} 60. Bd7 {[%emt 0:00:04]} Rb3 {[%emt 0:00:07]} 61. Bg4 {[%emt 0:00:07]} Ra3 {[%emt 0:00:23]} 62. Kf1 {[%emt 0:00:10]} Ra1+ {[%emt 0:00:06]} 63. Ke2 {[%emt 0:00:02]} Ra3 {[%emt 0:00:02]} 64. Bf3 {[%emt 0:00:04]} Kf5 {[%emt 0:00:07]} 65. Rxg3 {[%emt 0:00:06]} Kxf4 {[%emt 0:00:02]} 66. Rg4+ {[%emt 0:00:01]} Kf5 {[%emt 0:00:04]} 67. Rb4 {[%emt 0:00:02]} Ra2+ {[%emt 0:00:10]} 68. Ke3 {[%emt 0:00:04]} Ra5 {[%emt 0:00:10]} 69. Be4+ {[%emt 0:00:03]} Kf6 {[%emt 0:00:09]} 70. Rb6+ {[%emt 0:00:03]} Kf7 {[%emt 0:00:04]} 71. Bxg6+ {[%emt 0:00:03]} Ke7 {[%emt 0:00:06]} 72. Kf4 {[%emt 0:00:05]} Kf8 {[%emt 0:00:08]} 73. Bf5 {[%emt 0:00:03]} Ra1 {[%emt 0:00:11]} 74. Rb7 {[%emt 0:00:03]} Rf1+ {[%emt 0:00:03]} 75. Kg5 {[%emt 0:00:01]} Ke8 {[%emt 0:00:15]} 76. Kf6 {[%emt 0:00:06]} Rd1 {[%emt 0:00:16]} 77. Rb8+ {[%emt 0:00:03]} Rd8 {[%emt 0:00:03]} 78. Bg6+ {[%emt 0:00:02]} Kd7 {[%emt 0:00:05]} 79. Rb7+ {[%emt 0:00:02]} Kc8 {[%emt 0:00:06]} 80. Rb1 {[%emt 0:00:02]} Rd6+ {[%emt 0:00:02]} 81. Kf7 {[%emt 0:00:01]} Kc7 {[%emt 0:00:07]} 82. Be4 {[%emt 0:00:05]} Rd7+ {[%emt 0:00:04]} 83. Ke6 {[%emt 0:00:01]} Rd6+ {[%emt 0:00:02]} 84. Ke5 {[%emt 0:00:04]} Rb6 {[%emt 0:00:27]} 85. Rc1+ {[%emt 0:00:02]} Kb8 {[%emt 0:00:04]} 86. Bf5 {[%emt 0:00:02]} Rb5+ {[%emt 0:00:07]} 87. Kf6 {[%emt 0:00:03]} Ka7 {[%emt 0:00:05]} 88. Ra1+ {[%emt 0:00:03]} Kb6 {[%emt 0:00:03]} 89. Be6 {[%emt 0:00:02]} Rb4 {[%emt 0:00:13]} 90. Ke7 {[%emt 0:00:03]} Rd4 {[%emt 0:00:09]} 91. Rb1+ {[%emt 0:00:06]} Kc5 {[%emt 0:00:11]} 92. Rc1+ {[%emt 0:00:02]} Kb4 {[%emt 0:00:06]} 93. Kf6 {[%emt 0:00:07]} Rd6 {[%emt 0:00:06]} 94. Ke5 {[%emt 0:00:02]} Ra6 {[%emt 0:00:06]} 95. Kd4 {[%emt 0:00:04]} Rxe6 {[%emt 0:00:05]} 96. Rb1+ {[%emt 0:00:02]} Ka5 {[%emt 0:00:07]} 97. Kc5 {[%emt 0:00:02]} Re5+ {[%emt 0:00:03]} 98. Kd4 {[%emt 0:00:02]} Rb5 {[%emt 0:00:02]} 99. Rxb5+ {[%emt 0:00:04]} Kxb5 {[%emt 0:00:02]} 1/2-1/2

[Event "Deutscher Jugend Online Cup 2020"]
[Site "Tornelo"]
[Date "2020.11.14"]
[Round "4.7"]
[White "Besou, Hussain"]
[Black "Goldmann, David"]
[Result "1-0"]
[ECO "D06"]
[WhiteElo "1804"]
[BlackElo "1644"]
[Annotator "NA RC"]
[PlyCount "61"]
[EventDate "2020.11.13"]
[EventType "k.o."]
[SourceTitle "playchess.com"]
[Source "ChessBase"]
[SourceQuality "1"]
[TimeControl "600+3"]

1. d4 {[%emt 0:00:00]} Nf6 {[%emt 0:00:06]} 2. c4 {[%emt 0:00:04]} d5 {[%emt 0:00:01]} 3. cxd5 {[%emt 0:00:06]} Nxd5 {[%emt 0:00:04]} 4. e4 {[%emt 0:00:02]} Nb6 {[%emt 0:00:02]} 5. Nc3 {[%emt 0:00:03]} e6 {[%emt 0:00:01]} 6. Be3 {[%emt 0:00:03]} Bb4 {[%emt 0:00:03]} 7. a3 {[%emt 0:00:03]} Bxc3+ {[%emt 0:00:02]} 8. bxc3 {[%emt 0:00:02]} O-O {[%emt 0:00:03]} 9. Nf3 {[%emt 0:00:02]} N8d7 {[%emt 0:00:01]} 10. Be2 {[%emt 0:00:03]} Nf6 {[%emt 0:00:02]} 11. Qc2 {[%emt 0:00:03]} Bd7 {[%emt 0:00:03]} 12. a4 {[%emt 0:00:03]} Qe8 {[%emt 0:00:07]} 13. a5 {[%emt 0:00:04]} Nc8 {[%emt 0:00:08]} 14. O-O {[%emt 0:00:02]} Ne7 {[%emt 0:00:06]} 15. Rfb1 {[%emt 0:00:04]} Bc6 {[%emt 0:00:02]} 16. Nd2 {[%emt 0:00:02]} Ng6 {[%emt 0:00:02]} 17. c4 {[%emt 0:00:07]} Rb8 {[%emt 0:00:11]} 18. d5 {[%emt 0:00:02]} exd5 {[%emt 0:00:01]} 19. cxd5 {[%emt 0:00:04]} Bd7 {[%emt 0:00:04]} 20. Bxa7 {[%emt 0:00:02]} Ra8 {[%emt 0:00:02]} 21. Rxb7 {[%emt 0:00:02]} Ne5 {[%emt 0:00:06]} 22. Qxc7 {[%emt 0:00:03]} Rc8 {[%emt 0:00:02]} 23. Qb6 {[%emt 0:00:09]} Rc2 {[%emt 0:00:07]} 24. Qb4 {[%emt 0:00:03]} Qc8 {[%emt 0:00:08]} 25. a6 {[%emt 0:00:12]} Qc3 {[%emt 0:00:08]} 26. Qxc3 {[%emt 0:00:03]} Rxc3 {[%emt 0:00:00]} 27. Bd4 {[%emt 0:00:05]} Rc2 {[%emt 0:00:02]} 28. Bxe5 {[%emt 0:00:02]} Rxd2 {[%emt 0:00:02]} 29. a7 {[%emt 0:00:01]} Ba4 {[%emt 0:00:10]} 30. Bb8 {[%emt 0:00:11]} Rc8 {[%emt 0:00:07]} 31. Rc7 {[%emt 0:00:11]} 1-0

[Event "Deutscher Jugend Online Cup 2020"]
[Site "Tornelo"]
[Date "2020.11.14"]
[Round "5.4"]
[White "Becker, Linda"]
[Black "Pohle, Saskia"]
[Result "1-0"]
[ECO "C45"]
[WhiteElo "1763"]
[BlackElo "1815"]
[Annotator "NA RC"]
[PlyCount "78"]
[EventDate "2020.11.13"]
[EventType "k.o."]
[SourceTitle "playchess.com"]
[Source "ChessBase"]
[SourceQuality "1"]
[TimeControl "600+3"]

{[%evp 17,66,25,32767,32767,32767,32767,32767,15,32767,-27,45,32767,32767,34,32767,-139,36,32767,-20,-33,32767,324,32767,32767,316,276,281,247,322,280,397,499,471,495,604,693,854,947,829,971,878,574,976,1065,1023,1048,1110,930,1009,759,29991]} 1. e4 {[%emt 0:00:00]} e5 {[%emt 0:00:02]} 2. Nf3 {[%emt 0:00:03]} Nc6 {[%emt 0:00:01]} 3. d4 {[%emt 0:00:01]} exd4 {[%emt 0:00:01]} 4. Nxd4 {[%emt 0:00:02]} Bc5 {[%emt 0:00:01]} 5. Nb3 {[%emt 0:00:02]} Bb6 {[%emt 0:00:05]} 6. Nc3 {[%emt 0:00:02]} Nf6 {[%emt 0:00:04]} 7. Qe2 {[%emt 0:00:11]} d6 {[%emt 0:00:02]} 8. Bg5 {[%emt 0:00:05]} O-O {[%emt 0:00:05]} 9. O-O-O {[%emt 0:00:03]} h6 {[%emt 0:00:13]} 10. Bh4 {[%emt 0:00:05]} a5 {[%emt 0:00:06]} 11. a4 {[%emt 0:00:06]} Nb4 {[%emt 0:00:07]} 12. f3 {[%emt 0:00:33]} Be6 {[%emt 0:00:31]} 13. e5 {[%emt 0:00:36]} (13. Nd4 $14) 13... Bxb3 {[%emt 0:00:10]} (13... Re8 $1 $11 14. Nd2 Bf5) 14. cxb3 {[%emt 0:00:34]} Re8 {[%emt 0:00:16]} 15. f4 {[%emt 0:00:18]} Qd7 {[%emt 0:01:02]} 16. Qf3 $2 {[%emt 0:00:54] [#]} (16. Bxf6 $14 gxf6 17. Qh5 Be3+ 18. Kb1 fxe5 19. Bc4 exf4 20. Qg6+ Kf8 21. Qxh6+ Ke7 22. Qg5+ f6 23. Qg6) 16... Nh7 $2 {[%emt 0:00:22]} (16... Ng4 $1 $17 17. Qe4 Ne3) 17. Bb5 {[%emt 0:00:19]} c6 {[%emt 0:00:19]} 18. Rxd6 {[%emt 0:00:14]} Qc7 {[%emt 0:00:11]} 19. Bc4 {[%emt 0:00:18]} Bc5 {[%emt 0:00:23]} 20. Rdd1 {[%emt 0:00:31]} Nf8 {[%emt 0:00:48]} 21. g4 {[%emt 0:00:47]} Ne6 {[%emt 0:00:12]} 22. Ne4 {[%emt 0:00:38]} Nd4 {[%emt 0:00:43]} 23. Qg3 {[%emt 0:00:16]} Ba7 {[%emt 0:00:08]} 24. g5 {[%emt 0:00:14]} Nf5 {[%emt 0:00:10]} 25. Qh3 {[%emt 0:00:30]} Nxh4 {[%emt 0:00:27]} 26. Qxh4 {[%emt 0:00:09]} hxg5 {[%emt 0:00:20]} 27. Nxg5 {[%emt 0:00:09]} Nd5 {[%emt 0:00:34]} 28. Qh7+ {[%emt 0:00:12]} Kf8 {[%emt 0:00:03]} 29. Qh8+ {[%emt 0:00:11]} Ke7 {[%emt 0:00:02]} 30. Qxg7 {[%emt 0:00:04]} Rf8 {[%emt 0:00:36]} 31. Kb1 {[%emt 0:00:18]} Rad8 {[%emt 0:01:39]} 32. e6 {[%emt 0:01:17]} Qxf4 {[%emt 0:01:47]} 33. Rhf1 {[%emt 0:00:20]} Qc7 {[%emt 0:00:06]} 34. Rxf7+ {[%emt 0:00:12]} Rxf7 {[%emt 0:00:02]} 35. Qxf7+ {[%emt 0:00:04]} Kd6 {[%emt 0:00:01]} 36. Ne4+ {[%emt 0:00:26]} Ke5 {[%emt 0:00:03]} 37. Rxd5+ {[%emt 0:00:05]} cxd5 {[%emt 0:00:05]} 38. Qxc7+ {[%emt 0:00:03]} Kxe4 {[%emt 0:00:01]} 39. Qxd8 {[%emt 0:00:04]} dxc4 {[%emt 0:00:01]} 1-0

[Event "Deutscher Jugend Online Cup 2020"]
[Site "Tornelo"]
[Date "2020.11.14"]
[Round "5.5"]
[White "Trunz, Michelle"]
[Black "Braeutigam, Katerina"]
[Result "1-0"]
[ECO "E34"]
[WhiteElo "1673"]
[BlackElo "1737"]
[Annotator "NA RC"]
[PlyCount "135"]
[EventDate "2020.11.13"]
[EventType "k.o."]
[SourceTitle "playchess.com"]
[Source "ChessBase"]
[SourceQuality "1"]
[TimeControl "600+3"]

1. d4 {[%emt 0:00:00]} Nf6 {[%emt 0:00:04]} 2. c4 {[%emt 0:00:02]} e6 {[%emt 0:00:03]} 3. Nc3 {[%emt 0:00:02]} Bb4 {[%emt 0:00:02]} 4. Qc2 {[%emt 0:00:07]} d5 {[%emt 0:00:28]} 5. e3 {[%emt 0:00:11]} Bxc3+ {[%emt 0:00:33]} 6. Qxc3 {[%emt 0:00:04]} Ne4 {[%emt 0:00:06]} 7. Qc2 {[%emt 0:00:08]} Nd7 {[%emt 0:00:05]} 8. Nf3 {[%emt 0:00:05]} b6 {[%emt 0:00:14]} 9. Bd3 {[%emt 0:00:05]} Ndf6 {[%emt 0:00:05]} 10. O-O {[%emt 0:00:09]} O-O {[%emt 0:00:15]} 11. b3 {[%emt 0:00:17]} c5 {[%emt 0:00:21]} 12. cxd5 {[%emt 0:00:18]} exd5 {[%emt 0:00:09]} 13. Ba3 {[%emt 0:00:10]} Bb7 {[%emt 0:01:16]} 14. Rac1 {[%emt 0:00:26]} Rc8 {[%emt 0:00:17]} 15. Qb2 {[%emt 0:00:26]} Re8 {[%emt 0:00:26]} 16. Bb5 {[%emt 0:00:06]} Re6 {[%emt 0:00:24]} 17. Ne5 {[%emt 0:00:29]} Nd6 {[%emt 0:01:23]} 18. Bd3 {[%emt 0:00:12]} cxd4 {[%emt 0:01:05]} 19. exd4 {[%emt 0:00:16]} Nd7 {[%emt 0:00:51]} 20. Bxd6 {[%emt 0:00:08]} Rxd6 {[%emt 0:00:06]} 21. Bf5 {[%emt 0:00:48]} Nxe5 {[%emt 0:01:58]} 22. dxe5 {[%emt 0:00:52]} Rxc1 {[%emt 0:00:06]} 23. Rxc1 {[%emt 0:00:02]} Rc6 {[%emt 0:00:25]} 24. Rxc6 {[%emt 0:00:25]} Bxc6 {[%emt 0:00:03]} 25. Qc2 {[%emt 0:00:16]} Bd7 {[%emt 0:00:04]} 26. Bxh7+ {[%emt 0:00:05]} Kh8 {[%emt 0:00:14]} 27. Bd3 {[%emt 0:00:11]} Qc8 {[%emt 0:00:10]} 28. Qxc8+ {[%emt 0:00:10]} Bxc8 {[%emt 0:00:04]} 29. Kf1 {[%emt 0:00:02]} Bb7 {[%emt 0:00:05]} 30. Ke2 {[%emt 0:00:08]} Kg8 {[%emt 0:00:02]} 31. f3 {[%emt 0:00:10]} d4 {[%emt 0:00:03]} 32. Be4 {[%emt 0:00:05]} Ba6+ {[%emt 0:00:02]} 33. Bd3 {[%emt 0:00:02]} Bb7 {[%emt 0:00:01]} 34. Bc4 {[%emt 0:00:04]} a6 {[%emt 0:00:02]} 35. b4 {[%emt 0:00:04]} b5 {[%emt 0:00:02]} 36. Bb3 {[%emt 0:00:04]} Kf8 {[%emt 0:00:01]} 37. Kd3 {[%emt 0:00:03]} Ke7 {[%emt 0:00:02]} 38. Kxd4 {[%emt 0:00:01]} f6 {[%emt 0:00:02]} 39. exf6+ {[%emt 0:00:06]} Kxf6 {[%emt 0:00:02]} 40. Bd5 {[%emt 0:00:12]} Bc8 {[%emt 0:00:02]} 41. f4 {[%emt 0:00:11]} Kf5 {[%emt 0:00:04]} 42. g3 {[%emt 0:00:06]} Kg4 {[%emt 0:00:05]} 43. Bg2 {[%emt 0:00:05]} Be6 {[%emt 0:00:04]} 44. a3 {[%emt 0:00:05]} Bc8 {[%emt 0:00:03]} 45. Kc5 {[%emt 0:00:05]} Bd7 {[%emt 0:00:03]} 46. Kd6 {[%emt 0:00:07]} Bc8 {[%emt 0:00:02]} 47. Kc7 {[%emt 0:00:18]} Be6 {[%emt 0:00:04]} 48. Kb7 {[%emt 0:00:08]} Bc4 {[%emt 0:00:05]} 49. Kxa6 {[%emt 0:00:03]} Bd3 {[%emt 0:00:04]} 50. Ka5 {[%emt 0:00:04]} Bc4 {[%emt 0:00:03]} 51. a4 {[%emt 0:00:03]} bxa4 {[%emt 0:00:02]} 52. Kxa4 {[%emt 0:00:02]} Kf5 {[%emt 0:00:02]} 53. Ka5 {[%emt 0:00:03]} Ke6 {[%emt 0:00:02]} 54. b5 {[%emt 0:00:02]} Kd7 {[%emt 0:00:04]} 55. Bc6+ {[%emt 0:00:07]} Kc7 {[%emt 0:00:02]} 56. g4 {[%emt 0:00:08]} Be2 {[%emt 0:00:04]} 57. h3 {[%emt 0:00:04]} Bf1 {[%emt 0:00:02]} 58. h4 {[%emt 0:00:03]} Be2 {[%emt 0:00:02]} 59. g5 {[%emt 0:00:02]} Bg4 {[%emt 0:00:06]} 60. Be4 {[%emt 0:00:02]} Kb8 {[%emt 0:00:04]} 61. b6 {[%emt 0:00:05]} Bd1 {[%emt 0:00:02]} 62. f5 {[%emt 0:00:05]} Bb3 {[%emt 0:00:03]} 63. h5 {[%emt 0:00:05]} Bg8 {[%emt 0:00:03]} 64. h6 {[%emt 0:00:03]} gxh6 {[%emt 0:00:10]} 65. gxh6 {[%emt 0:00:02]} Bh7 {[%emt 0:00:02]} 66. Bd3 {[%emt 0:00:02]} Kb7 {[%emt 0:00:04]} 67. Kb5 {[%emt 0:00:03]} Kb8 {[%emt 0:00:02]} 68. Ka6 {[%emt 0:00:03]} 1-0

[Event "Deutscher Jugend Online Cup 2020"]
[Site "Tornelo"]
[Date "2020.11.14"]
[Round "5.5"]
[White "Goldmann, David"]
[Black "Besou, Hussain"]
[Result "0-1"]
[ECO "B24"]
[WhiteElo "1644"]
[BlackElo "1804"]
[Annotator "NA RC"]
[PlyCount "50"]
[EventDate "2020.11.13"]
[EventType "k.o."]
[SourceTitle "playchess.com"]
[Source "ChessBase"]
[SourceQuality "1"]
[TimeControl "600+3"]

1. e4 {[%emt 0:00:00]} c5 {[%emt 0:00:04]} 2. Nc3 {[%emt 0:00:04]} Nc6 {[%emt 0:00:03]} 3. g3 {[%emt 0:00:01]} g6 {[%emt 0:00:01]} 4. Bg2 {[%emt 0:00:01]} Bg7 {[%emt 0:00:02]} 5. Nge2 {[%emt 0:00:02]} h5 {[%emt 0:00:02]} 6. O-O {[%emt 0:00:01]} h4 {[%emt 0:00:02]} 7. d3 {[%emt 0:00:03]} d6 {[%emt 0:00:07]} 8. Bg5 {[%emt 0:00:14]} hxg3 {[%emt 0:00:23]} 9. fxg3 {[%emt 0:00:04]} Nf6 {[%emt 0:00:05]} 10. Bxf6 {[%emt 0:00:04]} Bxf6 {[%emt 0:00:04]} 11. Rb1 {[%emt 0:00:03]} Bg4 {[%emt 0:00:05]} 12. Nd5 {[%emt 0:00:05]} Nd4 {[%emt 0:00:11]} 13. Nxf6+ {[%emt 0:00:10]} exf6 {[%emt 0:00:04]} 14. Re1 {[%emt 0:00:03]} Nxe2+ {[%emt 0:00:02]} 15. Rxe2 {[%emt 0:00:02]} Bxe2 {[%emt 0:00:02]} 16. Qxe2 {[%emt 0:00:01]} Qe7 {[%emt 0:00:01]} 17. c3 {[%emt 0:00:05]} f5 {[%emt 0:00:05]} 18. Rf1 {[%emt 0:00:06]} fxe4 {[%emt 0:00:03]} 19. Bxe4 {[%emt 0:00:03]} f5 {[%emt 0:00:03]} 20. Re1 {[%emt 0:00:17]} fxe4 {[%emt 0:00:09]} 21. Qg4 {[%emt 0:00:02]} e3 {[%emt 0:00:10]} 22. Qxg6+ {[%emt 0:00:38]} Kd7 {[%emt 0:00:04]} 23. Qg4+ {[%emt 0:00:06]} Kc7 {[%emt 0:00:02]} 24. Qf4 {[%emt 0:00:24]} Rae8 {[%emt 0:00:06]} 25. Kg2 {[%emt 0:00:07]} Rhf8 {[%emt 0:00:15]} 0-1

[Event "Deutscher Jugend Online Cup 2020"]
[Site "Tornelo"]
[Date "2020.11.14"]
[Round "5.6"]
[White "B___, L___"]
[Black "Sickmann, Lisa"]
[Result "0-1"]
[ECO "C67"]
[WhiteElo "1348"]
[BlackElo "1510"]
[Annotator "NA RC"]
[PlyCount "86"]
[EventDate "2020.11.13"]
[EventType "k.o."]
[SourceTitle "playchess.com"]
[Source "ChessBase"]
[SourceQuality "1"]
[TimeControl "600+3"]

1. e4 {[%emt 0:00:00]} e5 {[%emt 0:00:03]} 2. Nf3 {[%emt 0:00:04]} Nc6 {[%emt 0:00:03]} 3. Bb5 {[%emt 0:00:07]} Nf6 {[%emt 0:00:03]} 4. O-O {[%emt 0:00:05]} Nxe4 {[%emt 0:00:03]} 5. d4 {[%emt 0:00:05]} Nd6 {[%emt 0:00:03]} 6. dxe5 {[%emt 0:00:09]} Nxb5 {[%emt 0:00:09]} 7. Nc3 {[%emt 0:00:05]} Nxc3 {[%emt 0:00:04]} 8. bxc3 {[%emt 0:00:03]} Be7 {[%emt 0:00:19]} 9. Bf4 {[%emt 0:00:09]} O-O {[%emt 0:00:05]} 10. Nd4 {[%emt 0:00:05]} Nxd4 {[%emt 0:00:03]} 11. cxd4 {[%emt 0:00:02]} d6 {[%emt 0:00:03]} 12. Qf3 {[%emt 0:00:08]} c6 {[%emt 0:00:12]} 13. Qg3 {[%emt 0:00:06]} Bh4 {[%emt 0:00:43]} 14. Qf3 {[%emt 0:00:22]} dxe5 {[%emt 0:00:04]} 15. Bxe5 {[%emt 0:00:05]} Bf6 {[%emt 0:00:12]} 16. Rfe1 {[%emt 0:00:09]} Bxe5 {[%emt 0:00:04]} 17. Rxe5 {[%emt 0:00:05]} Qf6 {[%emt 0:00:10]} 18. Qg3 {[%emt 0:00:12]} Bf5 {[%emt 0:00:27]} 19. c3 {[%emt 0:00:09]} Bg6 {[%emt 0:00:03]} 20. Rae1 {[%emt 0:00:04]} Qd6 {[%emt 0:00:24]} 21. Re7 {[%emt 0:00:15]} Qxg3 {[%emt 0:00:04]} 22. hxg3 {[%emt 0:00:05]} Rab8 {[%emt 0:00:05]} 23. Rd7 {[%emt 0:00:08]} Bf5 {[%emt 0:00:17]} 24. Rc7 {[%emt 0:00:09]} Be6 {[%emt 0:00:07]} 25. a4 {[%emt 0:00:19]} Rfc8 {[%emt 0:00:07]} 26. Rxc8+ {[%emt 0:00:03]} Rxc8 {[%emt 0:00:02]} 27. Rb1 {[%emt 0:00:07]} Rb8 {[%emt 0:00:06]} 28. a5 {[%emt 0:00:05]} b6 {[%emt 0:00:05]} 29. axb6 {[%emt 0:00:03]} Rxb6 {[%emt 0:00:02]} 30. Rxb6 {[%emt 0:00:02]} axb6 {[%emt 0:00:03]} 31. Kf1 {[%emt 0:00:02]} Kf8 {[%emt 0:00:03]} 32. Ke2 {[%emt 0:00:03]} Ke7 {[%emt 0:00:02]} 33. Kd3 {[%emt 0:00:05]} Kd6 {[%emt 0:00:03]} 34. Ke4 {[%emt 0:00:02]} Bd5+ {[%emt 0:00:02]} 35. Kf5 {[%emt 0:00:06]} Bxg2 {[%emt 0:00:03]} 36. f4 {[%emt 0:00:05]} c5 {[%emt 0:00:02]} 37. dxc5+ {[%emt 0:00:05]} bxc5 {[%emt 0:00:04]} 38. Kg5 {[%emt 0:00:13]} Kd5 {[%emt 0:00:04]} 39. Kf5 {[%emt 0:00:03]} Be4+ {[%emt 0:00:04]} 40. Kg4 {[%emt 0:00:03]} Kc4 {[%emt 0:00:02]} 41. f5 {[%emt 0:00:06]} Kxc3 {[%emt 0:00:02]} 42. Kf4 {[%emt 0:00:01]} Bxf5 {[%emt 0:00:03]} 43. Kxf5 {[%emt 0:00:02]} Kd3 {[%emt 0:00:02]} 0-1